fUST/lending_fUST_20260117
["ID","MTS","AMOUNT","RATE_DAILY","PERIOD"]
[402245807,1768619444204,-500.0,0.00019178,3]
[402245810,1768619444214,-854.43,0.00019178,3]
[402245812,1768619444228,-481.66318474,0.00019178,3]
[402245814,1768619444237,-531.11519273,0.00019178,3]
[402245816,1768619444247,-500.0,0.00019178,3]
[402245818,1768619444257,-500.0,0.00019178,3]
[402245820,1768619444267,-500.0,0.00019178,3]
[402245822,1768619444276,-1025.79,0.00019178,3]
[402245824,1768619444285,-500.0,0.00019178,3]
[402245826,1768619444295,-500.0,0.00019178,3]
[402245828,1768619444304,-500.0,0.00019178,3]
[402245830,1768619444313,-500.0,0.00019178,3]
[402245832,1768619444323,-500.0,0.00019178,3]
[402245834,1768619444332,-500.0,0.00019178,3]
[402245836,1768619444342,-546.55,0.00019178,3]
[402245838,1768619444352,-1133.35,0.00019178,3]
[402245840,1768619444362,-500.0,0.00019178,3]
[402245842,1768619444371,-500.0,0.00019178,3]
[402245844,1768619444381,-500.0,0.00019178,3]
[402245846,1768619444390,-500.0,0.00019178,3]
[402245848,1768619444399,-500.0,0.00019178,3]
[402245850,1768619444409,-2563.43,0.00019178,3]
[402245852,1768619444418,-1023.96,0.00019178,3]
[402245854,1768619444427,-500.0,0.00019178,3]
[402245856,1768619444436,-1676.66,0.00019178,3]
[402245858,1768619444446,-500.0,0.00019178,3]
[402245860,1768619444456,-923.37,0.00019178,3]
[402245862,1768619444465,-500.0,0.00019178,3]
[402245864,1768619444475,-500.0,0.00019178,3]
[402245867,1768619444485,-500.0,0.00019178,3]
[402245868,1768619444497,-500.0,0.00019178,3]
[402245870,1768619444506,-500.0,0.00019178,3]
[402245872,1768619444516,-500.0,0.00019178,3]
[402245874,1768619444526,-504.0,0.00019178,3]
[402245877,1768619444535,-500.0,0.00019178,3]
[402245879,1768619444546,-500.0,0.00019178,3]
[402245881,1768619444555,-500.0,0.00019178,3]
[402245883,1768619444564,-500.0,0.00019178,3]
[402245885,1768619444575,-500.0,0.00019178,3]
[402245886,1768619444585,-500.0,0.00019178,3]
[402245888,1768619444594,-500.0,0.00019178,3]
[402245890,1768619444608,-500.0,0.00019178,3]
[402245893,1768619444617,-500.0,0.00019178,3]
[402245895,1768619444626,-505.06,0.00019178,3]
[402245897,1768619444636,-1784.15,0.00019178,3]
[402245898,1768619444645,-709.01,0.00019178,3]
[402245900,1768619444654,-500.0,0.00019178,3]
[402245903,1768619444664,-500.0,0.00019178,3]
[402245905,1768619444674,-500.0,0.00019178,3]
[402245907,1768619444683,-500.0,0.00019178,3]
[402245909,1768619444692,-533.67555497,0.00019178,3]
[402245911,1768619444702,-341.99608753,0.00019178,3]
[402245913,1768619444711,-1566.74,0.00019178,3]
[402245915,1768619444720,-500.0,0.00019178,3]
[402245917,1768619444729,-500.0,0.00019178,3]
[402245919,1768619444738,-500.0,0.00019178,3]
[402245921,1768619444747,-1350.35,0.00019178,3]
[402245923,1768619444757,-500.0,0.00019178,3]
[402245924,1768619444766,-16346.1,0.00019178,3]
[402245926,1768619444776,-1720.94,0.00019178,3]
[402245928,1768619444785,-500.0,0.00019178,3]
[402245930,1768619444795,-500.0,0.00019178,3]
[402245932,1768619444805,-1974.46,0.00019178,3]
[402245934,1768619444814,-500.0,0.00019178,3]
[402245936,1768619444824,-503.32,0.00019178,3]
[402245938,1768619444834,-500.0,0.00019178,3]
[402245940,1768619444843,-500.0,0.00019178,3]
[402245942,1768619444854,-1621.21,0.00019178,2]
[402245944,1768619444864,-3952.98,0.00019178,3]
[402245946,1768619444874,-1683.67,0.00019178,3]
[402245948,1768619444883,-500.0,0.00019178,3]
[402245950,1768619444893,-845.12,0.00019178,3]
[402245952,1768619444903,-500.0,0.00019178,3]
[402245954,1768619444913,-500.0,0.00019178,3]
[402245956,1768619444923,-1014.31,0.00019178,3]
[402245958,1768619444932,-672.65,0.00019178,3]
[402245960,1768619444942,-500.0,0.00019178,3]
[402245962,1768619444951,-500.0,0.00019178,3]
[402245964,1768619444961,-2225.71,0.00019178,3]
[402245966,1768619444971,-1141.81,0.00019178,3]
[402245968,1768619444980,-500.0,0.00019178,3]
[402245970,1768619444990,-500.0,0.00019178,3]
[402245972,1768619444999,-500.0,0.00019178,3]
[402245975,1768619445008,-500.0,0.00019178,3]
[402245977,1768619445017,-500.0,0.00019178,3]
[402245979,1768619445027,-996.08,0.00019178,3]
[402245980,1768619445036,-1500.0,0.00019178,2]
[402245982,1768619445046,-500.0,0.00019178,3]
[402245984,1768619445057,-660.67,0.00019178,3]
[402245987,1768619445070,-706.96,0.00019178,3]
[402245989,1768619445079,-500.0,0.00019178,3]
[402245991,1768619445089,-500.0,0.00019178,3]
[402245993,1768619445098,-703.72,0.00019178,3]
[402245995,1768619445107,-1252.13,0.00019178,3]
[402245997,1768619445116,-2020.18,0.00019178,3]
[402245999,1768619445125,-500.0,0.00019178,3]
[402246001,1768619445134,-2229.2,0.00019178,3]
[402246003,1768619445143,-631.3,0.00019178,3]
[402246005,1768619445153,-870.65,0.00019178,3]
[402246007,1768619445162,-1150.52,0.00019178,3]
[402246009,1768619445173,-1219.06,0.00019178,3]
[402246011,1768619445183,-994.23,0.00019178,3]
[402246013,1768619445192,-500.0,0.00019178,3]
[402246015,1768619445201,-500.0,0.00019178,3]
[402246017,1768619445211,-500.0,0.00019178,3]
[402246019,1768619445220,-434.84073787,0.00019178,3]
[402246021,1768619445230,-545.81613756,0.00019178,3]
[402246023,1768619445240,-500.0,0.00019178,3]
[402246025,1768619445251,-1089.54,0.00019178,3]
[402246027,1768619445260,-500.0,0.00019178,3]
[402246029,1768619445270,-500.0,0.00019178,3]
[402246031,1768619445279,-884.02,0.00019178,3]
[402246033,1768619445291,-500.0,0.00019178,3]
[402246036,1768619445300,-500.0,0.00019178,3]
[402246038,1768619445310,-500.0,0.00019178,3]
[402246040,1768619445319,-151.0,0.00019178,2]
[402246042,1768619445328,-1230.26,0.00019178,3]
[402246044,1768619445338,-181.119152,0.00019178,2]
[402246046,1768619445347,-500.0,0.00019178,3]
[402246048,1768619445356,-2086.77,0.00019178,3]
[402246050,1768619445366,-500.0,0.00019178,3]
[402246052,1768619445376,-500.0,0.00019178,3]
[402246054,1768619445386,-500.0,0.00019178,3]
[402246056,1768619445395,-500.0,0.00019178,3]
[402246058,1768619445404,-511.64,0.00019178,3]
[402246060,1768619445414,-500.0,0.00019178,3]
[402246062,1768619445424,-1794.67,0.00019178,3]
[402246064,1768619445433,-812.25,0.00019178,3]
[402246066,1768619445442,-1791.99,0.00019178,3]
[402246068,1768619445451,-716.72,0.00019178,3]
[402246070,1768619445461,-500.0,0.00019178,3]
[402246072,1768619445470,-591.91,0.00019178,3]
[402246074,1768619445479,-500.0,0.00019178,3]
[402246076,1768619445489,-500.0,0.00019178,3]
[402246078,1768619445502,-500.0,0.00019178,3]
[402246080,1768619445511,-500.0,0.00019178,3]
[402246082,1768619445522,-500.0,0.00019178,3]
[402246084,1768619445531,-500.0,0.00019178,3]
[402246086,1768619445543,-500.0,0.00019178,3]
[402246089,1768619445552,-500.0,0.00019178,3]
[402246090,1768619445562,-1692.82,0.00019178,3]
[402246092,1768619445572,-1190.02,0.00019178,3]
[402246094,1768619445582,-963.14,0.00019178,3]
[402246096,1768619445591,-500.0,0.00019178,2]
[402246098,1768619445600,-2943.61,0.00019178,3]
[402246100,1768619445609,-500.0,0.00019178,3]
[402246102,1768619445619,-533.53,0.00019178,3]
[402246104,1768619445628,-525.8,0.00019178,3]
[402246106,1768619445637,-500.0,0.00019178,3]
[402246108,1768619445647,-505.52,0.00019178,3]
[402246110,1768619445656,-500.0,0.00019178,3]
[402246112,1768619445666,-500.0,0.00019178,3]
[402246115,1768619445677,-1494.01,0.00019178,3]
[402246117,1768619445687,-500.0,0.00019178,3]
[402246119,1768619445697,-1128.36,0.00019178,3]
[402246121,1768619445707,-534.57,0.00019178,3]
[402246123,1768619445716,-536.81,0.00019178,3]
[402246125,1768619445726,-509.7651277,0.00019178,3]
[402246127,1768619445735,-856.09,0.00019178,3]
[402246129,1768619445744,-1472.5,0.00019178,3]
[402246131,1768619445754,-500.0,0.00019178,3]
[402246133,1768619445763,-785.31,0.00019178,3]
[402246135,1768619445774,-564.06,0.00019178,3]
[402246137,1768619445785,-500.0,0.00019178,3]
[402246139,1768619445795,-500.0,0.00019178,3]
[402246141,1768619445805,-500.0,0.00019178,3]
[402246143,1768619445815,-500.0,0.00019178,3]
[402246145,1768619445825,-502.16,0.00019178,3]
[402246147,1768619445835,-500.0,0.00019178,3]
[402246149,1768619445844,-500.0,0.00019178,3]
[402246151,1768619445856,-500.0,0.00019178,3]
[402246153,1768619445866,-500.0,0.00019178,3]
[402246156,1768619445876,-500.0,0.00019178,3]
[402246158,1768619445886,-2793.9,0.00019178,3]
[402246160,1768619445896,-500.0,0.00019178,3]
[402246162,1768619445906,-500.0,0.00019178,3]
[402246164,1768619445915,-500.0,0.00019178,3]
[402246166,1768619445925,-1310.48,0.00019178,3]
[402246168,1768619445935,-1815.5,0.00019178,3]
[402246170,1768619445945,-754.41,0.00019178,3]
[402246172,1768619445956,-1993.8,0.00019178,3]
[402246174,1768619445966,-614.93,0.00019178,3]
[402246176,1768619445975,-673.89,0.00019178,3]
[402246179,1768619445986,-2937.59,0.00019178,3]
[402246181,1768619445995,-500.0,0.00019178,3]
[402246183,1768619446005,-281.96847602,0.00019178,3]
[402246185,1768619446015,-787.22,0.00019178,3]
[402246187,1768619446026,-666.1,0.00019178,3]
[402246189,1768619446035,-500.0,0.00019178,3]
[402246191,1768619446046,-500.0,0.00019178,3]
[402246193,1768619446056,-500.0,0.00019178,3]
[402246195,1768619446066,-500.0,0.00019178,3]
[402246197,1768619446076,-1627.4,0.00019178,3]
[402246199,1768619446086,-512.29,0.00019178,3]
[402246201,1768619446096,-500.0,0.00019178,3]
[402246204,1768619446106,-500.0,0.00019178,3]
[402246206,1768619446115,-500.0,0.00019178,3]
[402246208,1768619446125,-500.0,0.00019178,3]
[402246210,1768619446135,-500.0,0.00019178,3]
[402246212,1768619446146,-950.82,0.00019178,3]
[402246214,1768619446156,-500.0,0.00019178,3]
[402246216,1768619446166,-500.0,0.00019178,3]
[402246218,1768619446176,-1514.75,0.00019178,3]
[402246220,1768619446186,-500.0,0.00019178,3]
[402246222,1768619446196,-479.31164843,0.00019178,3]
[402246224,1768619446206,-500.0,0.00019178,3]
[402246226,1768619446216,-500.0,0.00019178,3]
[402246228,1768619446227,-218.2240779,0.00019178,3]
[402246230,1768619446237,-645.09,0.00019178,3]
[402246233,1768619446248,-500.0,0.00019178,3]
[402246235,1768619446258,-500.0,0.00019178,3]
[402246237,1768619446269,-500.0,0.00019178,3]
[402246239,1768619446279,-500.0,0.00019178,3]
[402246241,1768619446288,-500.0,0.00019178,3]
[402246243,1768619446300,-500.0,0.00019178,3]
[402246245,1768619446310,-1453.64,0.00019178,3]
[402246247,1768619446320,-8808.39,0.00019178,3]
[402246249,1768619446330,-500.0,0.00019178,3]
[402246252,1768619446340,-632.04690666,0.00019178,3]
[402246254,1768619446350,-1419.09,0.00019178,3]
[402246256,1768619446359,-500.0,0.00019178,3]
[402246258,1768619446370,-565.74,0.00019178,3]
[402246260,1768619446379,-500.0,0.00019178,3]
[402246262,1768619446390,-500.0,0.00019178,3]
[402246264,1768619446400,-754.38,0.00019178,3]
[402246266,1768619446410,-730.77,0.00019178,3]
[402246268,1768619446420,-500.0,0.00019178,3]
[402246270,1768619446430,-974.42,0.00019178,3]
[402246272,1768619446440,-500.0,0.00019178,3]
[402246274,1768619446450,-500.0,0.00019178,3]
[402246276,1768619446459,-500.0,0.00019178,3]
[402246277,1768619446469,-500.0,0.00019178,3]
[402246278,1768619446479,-981.83,0.00019178,3]
[402246279,1768619446489,-540.01468021,0.00019178,3]
[402246280,1768619446503,-1174.55,0.00019178,3]
[402246281,1768619446512,-500.0,0.00019178,3]
[402246282,1768619446522,-500.0,0.00019178,3]
[402246283,1768619446531,-523.7,0.00019178,3]
[402246284,1768619446541,-500.0,0.00019178,3]
[402246285,1768619446551,-1388.11,0.00019178,3]
[402246286,1768619446561,-593.53,0.00019178,3]
[402246287,1768619446577,-500.0,0.00019178,3]
[402246288,1768619446587,-500.0,0.00019178,3]
[402246289,1768619446596,-542.81,0.00019178,3]
[402246290,1768619446608,-657.53,0.00019178,3]
[402246291,1768619446618,-500.0,0.00019178,3]
[402246292,1768619446628,-500.0,0.00019178,3]
[402246293,1768619446637,-1473.59,0.00019178,3]
[402246294,1768619446647,-500.0,0.00019178,3]
[402246295,1768619446656,-500.0,0.00019178,3]
[402246296,1768619446666,-500.0,0.00019178,2]
[402246297,1768619446676,-500.0,0.00019178,3]
[402246298,1768619446686,-818.36,0.00019178,3]
[402246299,1768619446696,-1228.96,0.00019178,3]
[402246300,1768619446706,-508.51651972,0.00019178,3]
[402246302,1768619446715,-762.09,0.00019178,3]
[402246304,1768619446725,-2489.47,0.00019178,3]
[402246307,1768619446735,-756.76,0.00019178,3]
[402246309,1768619446746,-500.0,0.00019178,3]
[402246311,1768619446756,-500.0,0.00019178,3]
[402246313,1768619446766,-500.0,0.00019178,3]
[402246315,1768619446776,-723.07,0.00019178,3]
[402246317,1768619446785,-816.19,0.00019178,3]
[402246319,1768619446797,-500.0,0.00019178,3]
[402246321,1768619446807,-500.0,0.00019178,3]
[402246323,1768619446817,-858.73,0.00019178,3]
[402246325,1768619446828,-1519.31,0.00019178,3]
[402246328,1768619446838,-500.0,0.00019178,3]
[402246330,1768619446847,-500.0,0.00019178,3]
[402246332,1768619446858,-500.0,0.00019178,3]
[402246334,1768619446867,-1005.03,0.00019178,3]
[402246336,1768619446877,-500.0,0.00019178,3]
[402246338,1768619446886,-500.0,0.00019178,3]
[402246340,1768619446896,-500.0,0.00019178,3]
[402246342,1768619446906,-332.91217118,0.00019178,3]
[402246344,1768619446917,-528.93,0.00019178,3]
[402246346,1768619446926,-500.0,0.00019178,3]
[402246348,1768619446936,-500.0,0.00019178,3]
[402246350,1768619446945,-3350.84,0.00019178,3]
[402246352,1768619446955,-500.0,0.00019178,3]
[402246354,1768619446965,-500.0,0.00019178,3]
[402246356,1768619446976,-500.0,0.00019178,3]
[402246359,1768619446986,-523.31,0.00019178,3]
[402246361,1768619446995,-511.01993808,0.00019178,3]
[402246363,1768619447006,-500.0,0.00019178,3]
[402246365,1768619447016,-855.22,0.00019178,3]
[402246367,1768619447026,-500.0,0.00019178,3]
[402246369,1768619447036,-500.0,0.00019178,3]
[402246371,1768619447045,-500.0,0.00019178,3]
[402246373,1768619447055,-1238.53,0.00019178,3]
[402246375,1768619447065,-500.0,0.00019178,3]
[402246377,1768619447075,-765.07,0.00019178,3]
[402246379,1768619447084,-500.0,0.00019178,3]
[402246381,1768619447094,-500.0,0.00019178,3]
[402246384,1768619447108,-627.98,0.00019178,3]
[402246386,1768619447118,-1384.37,0.00019178,3]
[402246388,1768619447128,-500.0,0.00019178,3]
[402246390,1768619447138,-500.0,0.00019178,3]
[402246392,1768619447147,-703.46,0.00019178,3]
[402246394,1768619447157,-506.73766967,0.00019178,3]
[402246396,1768619447166,-1732.14,0.00019178,3]
[402246398,1768619447176,-500.0,0.00019178,3]
[402246400,1768619447186,-355.72833428,0.00019178,3]
[402246402,1768619447196,-500.0,0.00019178,3]
[402246404,1768619447206,-500.0,0.00019178,3]
[402246406,1768619447216,-2467.87,0.00019178,3]
[402246408,1768619447226,-500.0,0.00019178,3]
[402246410,1768619447236,-500.0,0.00019178,3]
[402246412,1768619447248,-1119.41,0.00019178,3]
[402246414,1768619447258,-500.0,0.00019178,3]
[402246416,1768619447268,-500.0,0.00019178,3]
[402246418,1768619447278,-500.0,0.00019178,3]
[402246420,1768619447287,-500.0,0.00019178,3]
[402246422,1768619447297,-500.0,0.00019178,3]
[402246424,1768619447307,-1683.23,0.00019178,3]
[402246426,1768619447317,-500.0,0.00019178,3]
[402246428,1768619447326,-859.04,0.00019178,3]
[402246430,1768619447336,-500.0,0.00019178,3]
[402246432,1768619447346,-599.53,0.00019178,3]
[402246434,1768619447356,-500.0,0.00019178,3]
[402246436,1768619447365,-1137.09,0.00019178,3]
[402246439,1768619447375,-500.0,0.00019178,3]
[402246441,1768619447385,-603.08,0.00019178,3]
[402246443,1768619447394,-500.0,0.00019178,3]
[402246445,1768619447405,-500.0,0.00019178,3]
[402246447,1768619447414,-1884.77,0.00019178,3]
[402246449,1768619447424,-500.0,0.00019178,3]
[402246451,1768619447434,-500.0,0.00019178,3]
[402246453,1768619447443,-500.0,0.00019178,3]
[402246455,1768619447453,-500.0,0.00019178,3]
[402246457,1768619447468,-500.0,0.00019178,3]
[402246459,1768619447478,-500.0,0.00019178,3]
[402246461,1768619447488,-500.0,0.00019178,3]
[402246463,1768619447500,-960.95,0.00019178,3]
[402246465,1768619447510,-500.0,0.00019178,3]
[402246467,1768619447520,-500.0,0.00019178,3]
[402246469,1768619447530,-500.0,0.00019178,3]
[402246471,1768619447542,-500.0,0.00019178,3]
[402246474,1768619447552,-500.0,0.00019178,3]
[402246476,1768619447562,-500.0,0.00019178,3]
[402246478,1768619447575,-500.0,0.00019178,3]
[402246480,1768619447585,-500.0,0.00019178,3]
[402246482,1768619447595,-500.0,0.00019178,3]
[402246484,1768619447605,-1092.11,0.00019178,3]
[402246486,1768619447617,-1118.79,0.00019178,3]
[402246488,1768619447627,-500.0,0.00019178,3]
[402246490,1768619447637,-543.92,0.00019178,3]
[402246492,1768619447647,-1596.53,0.00019178,3]
[402246494,1768619447657,-1925.72,0.00019178,3]
[402246496,1768619447667,-2042.09,0.00019178,3]
[402246498,1768619447678,-500.0,0.00019178,3]
[402246501,1768619447688,-500.0,0.00019178,3]
[402246503,1768619447698,-500.0,0.00019178,3]
[402246505,1768619447708,-500.0,0.00019178,3]
[402246507,1768619447718,-500.0,0.00019178,3]
[402246509,1768619447728,-1743.64,0.00019178,3]
[402246511,1768619447739,-1023.1,0.00019178,3]
[402246513,1768619447749,-500.0,0.00019178,3]
[402246515,1768619447758,-500.0,0.00019178,3]
[402246517,1768619447768,-500.0,0.00019178,3]
[402246519,1768619447778,-500.0,0.00019178,3]
[402246521,1768619447788,-885.93,0.00019178,3]
[402246523,1768619447798,-500.0,0.00019178,3]
[402246525,1768619447808,-500.0,0.00019178,3]
[402246528,1768619447818,-1041.52,0.00019178,3]
[402246529,1768619447828,-676.11,0.00019178,3]
[402246532,1768619447838,-685.57,0.00019178,3]
[402246534,1768619447848,-500.0,0.00019178,3]
[402246536,1768619447858,-1293.83,0.00019178,3]
[402246538,1768619447868,-500.0,0.00019178,3]
[402246540,1768619447878,-500.0,0.00019178,3]
[402246542,1768619447888,-1343.55,0.00019178,3]
[402246544,1768619447898,-607.17,0.00019178,3]
[402246546,1768619447908,-500.0,0.00019178,3]
[402246548,1768619447917,-500.0,0.00019178,3]
[402246550,1768619447927,-500.0,0.00019178,3]
[402246552,1768619447937,-513.27339487,0.00019178,3]
[402246554,1768619447947,-713.18,0.00019178,3]
[402246556,1768619447957,-500.0,0.00019178,3]
[402246558,1768619447967,-1994.83,0.00019178,3]
[402246560,1768619447977,-500.0,0.00019178,3]
[402246562,1768619447988,-901.05,0.00019178,3]
[402246564,1768619447997,-2128.12,0.00019178,3]
[402246566,1768619448008,-500.0,0.00019178,3]
[402246567,1768619448019,-909.52,0.00019178,3]
[402246568,1768619448325,-506.48414027,0.00019178,3]
[402246569,1768619448339,-500.0,0.00019178,3]
[402246570,1768619448349,-233.19102223,0.00019178,3]
[402246571,1768619448359,-508.18606379,0.00019178,3]
[402246572,1768619448369,-500.0,0.00019178,3]
[402246573,1768619448378,-500.0,0.00019178,3]
[402246574,1768619448388,-621.61,0.00019178,3]
[402246575,1768619448398,-500.0,0.00019178,3]
[402246576,1768619448407,-500.0,0.00019178,3]
[402246577,1768619448417,-1365.06,0.00019178,3]
[402246578,1768619448426,-500.0,0.00019178,3]
[402246579,1768619448436,-500.0,0.00019178,2]
[402246580,1768619448446,-500.0,0.00019178,3]
[402246581,1768619448455,-500.0,0.00019178,3]
[402246582,1768619448464,-590.01,0.00019178,3]
[402246583,1768619448474,-982.26,0.00019178,3]
[402246584,1768619448483,-500.0,0.00019178,3]
[402246585,1768619448492,-500.0,0.00019178,3]
[402246586,1768619448505,-514.07541886,0.00019178,3]
[402246587,1768619448514,-500.0,0.00019178,2]
[402246588,1768619448524,-1187.12,0.00019178,3]
[402246589,1768619448533,-509.94393011,0.00019178,3]
[402246590,1768619448544,-1547.36,0.00019178,3]
[402246591,1768619448554,-500.0,0.00019178,3]
[402246592,1768619448563,-500.0,0.00019178,3]
[402246593,1768619448574,-500.0,0.00019178,3]
[402246594,1768619448583,-1698.81,0.00019178,3]
[402246595,1768619448592,-1160.43,0.00019178,3]
[402246596,1768619448602,-355.97567578,0.00019178,3]
[402246597,1768619448611,-500.0,0.00019178,3]
[402246598,1768619448621,-826.15,0.00019178,3]
[402246599,1768619448630,-566.39019728,0.00019178,3]
[402246600,1768619448639,-500.0,0.00019178,3]
[402246601,1768619448650,-500.0,0.00019178,3]
[402246602,1768619448660,-500.0,0.00019178,3]
[402246603,1768619448669,-500.0,0.00019178,3]
[402246604,1768619448679,-1592.47,0.00019178,3]
[402246605,1768619448688,-714.08,0.00019178,3]
[402246606,1768619448699,-530.24,0.00019178,3]
[402246607,1768619448719,-500.0,0.00019178,3]
[402246608,1768619448735,-500.0,0.00019178,3]
[402246609,1768619448756,-500.0,0.00019178,3]
[402246610,1768619448776,-918.67,0.00019178,3]
[402246611,1768619448786,-500.0,0.00019178,3]
[402246612,1768619448797,-630.38,0.00019178,3]
[402246613,1768619448810,-223.13252063,0.00019178,2]
[402246614,1768619448821,-1582.960842,0.00019178,2]
[402246615,1768619448832,-1582.960842,0.00019178,2]
[402246616,1768619448843,-1582.960842,0.00019178,2]
[402246617,1768619448855,-1582.960842,0.00019178,2]
[402246618,1768619448866,-1582.960842,0.00019178,2]
[402246619,1768619448875,-1582.960842,0.00019178,2]
[402246620,1768619448885,-1582.960842,0.00019178,2]
[402246621,1768619448894,-1582.960842,0.00019178,2]
[402246622,1768619448903,-151.00001,0.00019178,2]
[402246623,1768619448912,-500.0,0.00019178,2]
[402246624,1768619448928,-3669.58,0.000192,2]
[402246625,1768619448949,-189.5,0.000192,2]
[402246626,1768619448968,-191.09,0.000192,2]
[402246627,1768619448979,-25262.35,0.000192,2]
[402246628,1768619448991,-167.88,0.000192,2]
[402246629,1768619449001,-370.9,0.00019237,2]
[402246630,1768619449012,-217.02931649,0.00019271,2]
[402246631,1768619449024,-151.0,0.00019271,2]
[402246632,1768619449033,-445.202766,0.00019271,2]
[402246633,1768619449047,-250.0,0.00019271,2]
[402246634,1768619449057,-162.380719,0.00019271,2]
[402246635,1768619449067,-151.0,0.00019271,2]
[402246636,1768619449078,-151.0,0.00019271,2]
[402246637,1768619449089,-168.3888056,0.00019271,2]
[402246638,1768619449099,-250.0,0.00019271,2]
[402246639,1768619449110,-151.0,0.00019271,2]
[402246640,1768619449120,-151.0,0.00019271,2]
[402246641,1768619449131,-174.61919141,0.00019271,2]
[402246642,1768619449143,-250.0,0.00019271,2]
[402246643,1768619449154,-151.0,0.00019271,2]
[402246644,1768619449163,-151.0,0.00019271,2]
[402246645,1768619449175,-181.08010149,0.00019271,2]
[402246646,1768619449187,-250.0,0.00019271,2]
[402246647,1768619449199,-151.0,0.00019271,2]
[402246648,1768619449209,-298.36833089,0.00019271,2]
[402246649,1768619449218,-187.78006525,0.00019271,2]
[402246650,1768619449229,-250.0,0.00019271,2]
[402246651,1768619449239,-194.72792766,0.00019271,2]
[402246652,1768619449248,-250.0,0.00019271,2]
[402246653,1768619449258,-151.0,0.00019271,2]
[402246654,1768619449267,-250.0,0.00019271,2]
[402246655,1768619449277,-201.93286099,0.00019271,2]
[402246656,1768619449287,-250.0,0.00019271,2]
[402246657,1768619449296,-250.0,0.00019271,2]
[402246658,1768619449305,-162.380719,0.00019271,2]
[402246659,1768619449315,-151.0,0.00019271,2]
[402246660,1768619449325,-250.0,0.00019271,2]
[402246661,1768619449335,-209.40437684,0.00019271,2]
[402246662,1768619449344,-375.07008079,0.00019271,2]
[402246663,1768619449354,-250.0,0.00019271,2]
[402246664,1768619449364,-151.0,0.00019271,2]
[402246665,1768619449374,-250.0,0.00019271,2]
[402246666,1768619449383,-217.15233878,0.00019271,2]
[402246667,1768619449393,-255.57776257,0.00019271,2]
[402246668,1768619449402,-151.0,0.00019271,2]
[402246669,1768619449411,-250.0,0.00019271,2]
[402246670,1768619449421,-225.18697532,0.00019271,2]
[402246671,1768619449430,-151.0,0.00019271,2]
[402246672,1768619449440,-276.49131591,0.00019271,2]
[402246673,1768619449449,-233.51889341,0.00019271,2]
[402246674,1768619449459,-151.0,0.00019271,2]
[402246675,1768619449468,-242.15909246,0.00019271,2]
[402246676,1768619449478,-151.0,0.00019271,2]
[402246677,1768619449487,-251.11897888,0.00019271,2]
[402246678,1768619449501,-151.0,0.00019271,2]
[402246679,1768619449511,-289.7999351,0.00019271,2]
[402246680,1768619449520,-260.4103811,0.00019271,2]
[402246681,1768619449529,-270.0455652,0.00019271,2]
[402246682,1768619449541,-160.97479898,0.00019271,2]